bitfinex/quotes_ETHUSD_20251110
["timestamp","ask_amount","ask_price","bid_price","bid_amount"]
[1762795707608,3.32563486,3538.3,3537.3,3.2325045]
[1762795707815,3.32563486,3538.3,3537.6,2.82676499]
[1762795708011,0.4994,3538.2,3537.6,2.82676499]
[1762795709090,0.4994,3538.2,3537.7,2.82667119]
[1762795709892,0.4994,3538.2,3537.6,2.82674489]
[1762795710224,0.4994,3538.2,3537.7,2.82669422]
[1762795710600,3.88802194,3539.4,3537.7,2.82669422]
[1762795710601,3.0108112,3538.9,3538.0,2.82644462]
[1762795710799,0.185,3538.9,3537.7,0.60453428]
[1762795711119,2.82582497,3538.8,3538.1,2.82631085]
[1762795711423,2.82582032,3538.8,3538.2,2.8262934]
[1762795711723,0.185,3538.9,3537.6,1.259712]
[1762795711891,0.4527,3537.7,3537.5,3.845]
[1762795712092,0.4527,3537.6,3537.4,2.82687]
[1762795712292,0.4527,3537.6,3537.4,3.39226423]
[1762795712511,0.1732,3537.9,3537.6,2.82676767]
[1762795713584,0.1732,3537.9,3537.5,2.82682963]
[1762795714232,0.1732,3537.9,3537.5,2.82685216]
[1762795714437,0.6726,3537.9,3537.4,3.39226644]
[1762795714739,0.1732,3537.9,3537.6,2.82671092]
[1762795715712,0.1732,3537.9,3537.6,2.82670547]
[1762795716605,0.1732,3537.9,3537.5,2.82682135]
[1762795717007,0.1732,3537.9,3537.6,2.82672582]
[1762795719145,0.1742,3537.9,3537.6,2.82672582]
[1762795720031,0.1742,3537.9,3537.7,2.82668819]
[1762795720239,0.1742,3537.9,3537.6,2.8267506]
[1762795720441,0.1742,3537.9,3537.6,3.95694682]
[1762795720813,0.0509,3537.7,3537.5,0.74789267]
[1762795721042,0.1742,3537.9,3535.9,3.02877623]
[1762795721043,0.4555,3537.6,3537.1,0.002]
[1762795721244,0.1742,3537.9,3537.1,0.1967]
[1762795721448,0.1742,3537.9,3537.5,2.82685484]
[1762795721646,0.1742,3537.9,3537.4,2.82690265]
[1762795721853,0.1742,3537.9,3537.1,0.6867]
[1762795722054,0.1742,3537.9,3537.2,0.5791412]
[1762795722219,0.1742,3537.9,3537.4,2.82688833]
[1762795722418,0.1742,3537.9,3537.4,2.82688207]
[1762795722626,0.0509,3537.5,3537.2,0.5791412]
[1762795722835,0.0049,3537.3,3537.1,0.002]
[1762795723140,0.0504,3537.2,3537.1,0.002]
[1762795723339,2.87749487,3537.2,3537.1,0.002]
[1762795723543,3.37289487,3537.2,3537.1,0.002]
[1762795724331,0.5458,3537.2,3537.1,0.002]
[1762795724839,3.37289487,3537.2,3537.1,0.002]
[1762795726064,0.5458,3537.2,3537.1,0.002]
[1762795726251,3.37289487,3537.2,3537.1,0.002]
[1762795726953,0.5458,3537.2,3537.1,3.862]
[1762795727657,3.37289487,3537.2,3537.1,3.862]
[1762795729758,3.37289487,3537.2,3537.1,0.002]
[1762795729962,3.98147858,3537.2,3537.1,0.002]
[1762795730327,5.24119058,3537.2,3537.1,0.002]
[1762795732685,3.48607858,3537.2,3537.1,0.002]
[1762795732832,2.87749487,3537.2,3537.1,0.002]
[1762795733038,3.37289487,3537.2,3537.1,0.002]
[1762795734955,3.98132487,3537.2,3537.1,0.002]
[1762795736323,5.24103687,3537.2,3537.1,0.002]
[1762795739268,2.82741461,3536.8,3536.7,0.002]
[1762795739455,4.08712661,3536.8,3536.7,0.002]
[1762795739766,5.24080164,3536.8,3536.7,0.002]
[1762795742244,5.64630564,3536.8,3536.7,0.002]
[1762795743462,6.04174993,3536.8,3536.7,0.002]
[1762795743994,5.64630564,3536.8,3536.7,0.002]
[1762795747062,6.04174993,3536.8,3536.7,0.002]
[1762795747472,6.38268953,3536.8,3536.7,0.002]
[1762795747673,5.64630564,3536.8,3536.7,0.002]
[1762795747873,6.65913553,3536.8,3536.7,0.002]
[1762795749975,6.65913553,3536.8,3536.1,0.01]
[1762795749976,0.0049,3536.2,3536.1,1e-08]
[1762795750176,2.82869427,3535.2,3535.1,0.012]
[1762795750389,5.89707544,3535.2,3535.1,0.012]
[1762795750588,5.89707544,3535.2,3534.2,0.002]
[1762795750589,2.8290944,3534.7,3534.2,0.002]
[1762795750763,3.49136943,3534.7,3534.2,0.002]
[1762795750963,3.98196943,3534.7,3534.2,0.002]
[1762795751181,4.37741372,3534.7,3534.2,0.002]
[1762795752082,3.98196943,3534.7,3534.2,0.002]
[1762795752279,4.75108143,3534.7,3534.2,0.002]
[1762795752899,5.24168143,3534.7,3534.2,0.002]
[1762795754498,6.04262972,3534.7,3534.2,0.002]
[1762795755907,6.80238006,3534.7,3534.2,0.002]
[1762795756499,6.80238006,3534.7,3533.8,0.002]
[1762795756500,3.23523885,3533.9,3533.8,0.002]
[1762795756706,5.29845803,3533.9,3533.8,0.002]
[1762795756887,3.2863458,3533.9,3533.8,0.002]
[1762795757081,2.82973485,3533.9,3533.8,0.002]
[1762795757420,2.88413485,3533.9,3533.8,0.002]
[1762795758191,3.03133485,3533.9,3533.8,0.002]
[1762795758623,5.19836337,3533.9,3533.8,0.002]
[1762795758786,5.80384575,3533.9,3533.8,0.002]
[1762795759608,6.21134004,3533.9,3533.8,0.002]
[1762795759795,6.15084769,3533.9,3533.8,0.002]
[1762795760197,13.47046084,3533.9,3533.8,0.002]
[1762795761296,12.86497846,3533.9,3533.8,0.002]
[1762795763249,13.46985676,3533.9,3533.8,0.002]
[1762795763394,2.82973485,3533.9,3533.8,0.4917]
[1762795763595,2.82973485,3533.9,3533.8,0.002]
[1762795763807,4.29194685,3533.9,3533.8,0.002]
[1762795764006,4.29194685,3533.9,3533.1,0.01]
[1762795764007,10.55541263,3533.2,3533.1,0.01]
[1762795764205,11.49540394,3533.2,3533.1,0.01]
[1762795764436,11.99040394,3533.2,3533.1,0.01]
[1762795770522,11.05331263,3533.2,3533.1,0.01]
[1762795770725,11.05331263,3533.2,3533.1,0.012]
[1762795771856,11.99040394,3533.2,3533.1,0.012]
[1762795774295,12.59665621,3533.2,3533.1,0.012]
[1762795774487,11.69325221,3533.2,3533.1,0.4864]
[1762795774776,3.25735376,3533.2,3533.1,0.4864]
[1762795775776,3.66339836,3533.2,3533.1,0.012]
[1762795776347,4.27061047,3533.2,3533.1,0.012]
[1762795776750,4.36551047,3533.2,3533.1,0.012]
[1762795778387,0.10721211,3533.2,3533.1,1.1665]
[1762795778560,0.001,3533.9,3533.1,1.1665]
[1762795778755,2.83074813,3533.9,3533.8,0.4744]
[1762795779186,2.83074813,3533.9,3533.8,0.9701]
[1762795779955,0.001,3533.9,3533.8,0.9701]
[1762795780352,0.001,3533.9,3533.1,0.1964]
[1762795780353,1.727312,3533.9,3533.3,0.4957]
[1762795780650,1.727312,3533.9,3533.1,0.1964]
[1762795780651,2.83014495,3533.4,3533.1,0.1964]
[1762795780863,2.83008894,3533.5,3533.1,0.1964]
[1762795781086,6.39353116,3533.6,3533.3,0.4744]
[1762795781087,2.83013528,3533.4,3533.3,0.4744]
[1762795781253,6.39353116,3533.6,3533.1,0.6921]
[1762795781453,6.39353116,3533.6,3533.3,0.4744]
[1762795781682,0.75736384,3533.6,3533.3,0.4744]
[1762795781878,2.83013528,3533.4,3533.3,0.4744]
[1762795782079,3.58734851,3533.6,3533.3,0.4744]
[1762795782080,0.75736384,3533.6,3533.3,0.4957]
[1762795782311,0.75736384,3533.6,3533.3,0.9701]
[1762795782616,2.83013528,3533.4,3533.3,0.9701]
[1762795783578,2.83013528,3533.4,3533.3,0.4744]
[1762795784727,2.83013528,3533.4,3533.3,0.9701]
[1762795785490,3.58741217,3533.6,3533.3,0.9701]
[1762795785703,2.83004833,3533.6,3533.5,0.4744]
[1762795786110,0.75736384,3533.8,3533.5,0.9701]
[1762795786325,0.75736384,3533.8,3533.7,0.4744]
[1762795786500,3.58717877,3533.8,3533.7,0.4744]
[1762795787098,3.58717877,3533.8,3533.6,4.3557]
[1762795787099,2.82989501,3533.7,3533.6,3.86]
[1762795787306,3.83632468,3533.7,3533.6,3.86]
[1762795787501,3.43060232,3533.7,3533.6,3.86]
[1762795788616,3.83632468,3533.7,3533.6,3.86]
[1762795788794,3.43060232,3533.7,3533.6,3.86]
[1762795790131,4.89562879,3533.7,3533.6,3.86]
[1762795790435,5.506008,3533.7,3533.6,3.86]
[1762795791427,5.506008,3533.7,3533.1,0.1964]
[1762795791428,2.83029548,3533.2,3533.1,0.1964]
[1762795791595,3.44067469,3533.2,3533.1,0.6921]
[1762795791802,0.61037921,3533.2,3533.1,1.1665]
[1762795792302,0.61037921,3533.3,3533.1,1.1665]
[1762795792500,3.44067469,3533.2,3533.1,0.1964]
[1762795793008,3.44067469,3533.2,3533.1,1.1665]
[1762795794306,3.44067469,3533.2,3533.1,0.4864]
[1762795794739,3.44067469,3533.2,3533.1,4.3464]
[1762795794944,3.846482,3533.2,3533.1,3.872]
[1762795795111,3.44067469,3533.2,3533.1,4.3301]
[1762795795317,3.44067469,3533.2,3533.1,4.7943]
[1762795795824,3.44067469,3533.2,3533.1,4.3301]
[1762795798337,3.92887469,3533.2,3533.1,3.872]
[1762795799235,3.44067469,3533.2,3533.1,3.872]
[1762795799440,3.44067469,3533.2,3533.1,4.3301]
[1762795800004,3.44067469,3533.2,3533.1,3.872]
[1762795800404,3.44067469,3533.2,3533.1,4.3301]
[1762795800801,3.44067469,3533.2,3533.1,4.9844]
[1762795801004,0.001,3533.8,3533.1,5.48284]
[1762795801247,0.001,3533.8,3533.1,3.872]
[1762795801248,2.83029548,3533.2,3533.1,3.872]
[1762795801453,3.92924476,3533.2,3533.1,3.872]
[1762795801900,3.44104476,3533.2,3533.1,3.872]
[1762795802542,3.44104476,3533.2,3533.1,4.5202]
[1762795802840,3.44104476,3533.2,3533.1,4.9844]
[1762795803215,2.83007134,3533.5,3533.1,5.48284]
[1762795803429,2.83012838,3533.5,3533.2,0.4642]
[1762795803757,2.83005518,3533.5,3533.4,0.4581]
[1762795803901,3.44100408,3533.5,3533.4,0.4581]
[1762795804131,3.44100408,3533.5,3533.4,0.9223]
[1762795805948,3.44100408,3533.5,3533.4,0.4581]
[1762795806975,3.44200408,3533.5,3533.4,0.9223]
[1762795807766,2.83105518,3533.5,3533.4,0.9223]
[1762795808042,3.44218168,3533.5,3533.4,0.4581]
[1762795810581,3.44218168,3533.5,3533.4,0.9223]
[1762795812244,3.44218168,3533.5,3533.1,0.012]
[1762795812245,2.83029548,3533.2,3533.1,0.012]
[1762795812473,3.44142198,3533.2,3533.1,0.2021]
[1762795812685,2.83029548,3533.2,3533.1,1.1244]
[1762795813603,0.001,3533.5,3533.1,1.1244]
[1762795813752,2.83105518,3533.5,3533.4,0.4581]
[1762795813950,3.44237959,3533.5,3533.4,0.4581]
[1762795814159,3.44237959,3533.5,3533.4,0.9223]
[1762795816753,3.44237959,3533.5,3533.1,0.012]
[1762795816754,2.83029548,3533.2,3533.1,0.012]
[1762795817388,3.44163353,3533.2,3533.1,0.4701]
[1762795818468,3.92983353,3533.2,3533.1,0.012]
[1762795818852,3.44163353,3533.2,3533.1,0.012]
[1762795819222,3.44163353,3533.2,3533.1,0.4701]
[1762795819437,3.92983353,3533.2,3533.1,0.012]
[1762795820023,3.44163353,3533.2,3533.1,0.012]
[1762795820223,3.44163353,3533.2,3533.1,0.4701]
[1762795821631,3.92983353,3533.2,3533.1,0.012]
[1762795821929,3.44163353,3533.2,3533.1,0.012]
[1762795822747,3.92983353,3533.2,3533.1,0.012]
[1762795822955,3.92983353,3533.2,3533.1,1e-08]
[1762795822956,5.55532122,3533.2,3533.1,1e-08]
[1762795823116,8.75593462,3533.2,3533.1,1e-08]
[1762795823287,8.36724004,3533.2,3533.1,1e-08]
[1762795824797,7.94586768,3533.2,3533.1,1e-08]
[1762795825436,8.36724004,3533.2,3533.1,1e-08]
[1762795825894,7.94586768,3533.2,3533.1,1e-08]
[1762795826094,8.35137168,3533.2,3533.1,1e-08]
[1762795826342,9.89665176,3533.2,3533.1,1e-08]
[1762795826557,0.405504,3532.7,3532.3,0.002]
[1762795826730,0.405504,3532.7,3532.1,1e-08]
[1762795826731,8.48664691,3532.2,3532.1,1e-08]
[1762795826930,11.84485081,3532.2,3532.1,1e-08]
[1762795827244,12.32135081,3532.2,3532.1,1e-08]
[1762795827442,11.81009874,3532.2,3532.1,1e-08]
[1762795827740,10.79301866,3532.2,3532.1,1e-08]
[1762795828051,12.32135081,3532.2,3532.1,1e-08]
[1762795828209,10.79301866,3532.2,3532.1,1e-08]
[1762795828606,4.49695412,3531.4,3531.3,0.002]
[1762795828822,7.14681286,3531.4,3531.3,0.002]
[1762795829062,7.14681286,3531.4,3531.3,0.474]
[1762795829063,0.61133805,3531.4,3531.3,0.474]
[1762795829222,1.259712,3532.0,3531.3,0.9287]
[1762795829223,2.83166045,3531.5,3531.3,0.9287]
[1762795829410,2.83166045,3531.5,3531.4,0.472]
[1762795829805,2.83160753,3531.6,3531.4,0.472]
[1762795830110,2.83160753,3531.6,3531.3,0.002]
[1762795830111,2.83116574,3532.2,3532.0,0.472]
[1762795830311,0.4765,3532.7,3532.1,0.472]
[1762795830511,0.4765,3532.7,3532.6,0.472]
[1762795830512,0.60872086,3532.7,3532.6,0.472]
[1762795830723,0.4765,3533.4,3532.6,0.5959]
[1762795831046,0.001,3533.5,3532.6,1.0506]
[1762795831259,0.001,3533.5,3533.4,0.472]
[1762795831424,0.001,3533.5,3533.4,0.6529]
[1762795831616,0.001,3533.5,3533.4,1.1076]
[1762795833350,2.83105518,3533.5,3533.4,1.1076]
[1762795833549,2.83105518,3533.5,3533.4,0.6529]
[1762795833714,2.83105518,3533.5,3533.4,0.472]
[1762795834049,2.83016326,3533.4,3533.2,0.1809]
[1762795834267,2.83016326,3533.4,3533.0,0.4547]
[1762795834469,2.83022599,3533.3,3533.0,0.4547]
[1762795834645,0.001,3533.5,3533.1,0.1809]
[1762795834842,0.001,3533.5,3533.2,0.472]
[1762795835056,0.001,3533.5,3533.4,0.472]
[1762795835551,0.001,3533.5,3533.4,0.9267]
[1762795836358,0.001,3533.5,3533.4,0.472]
[1762795837167,0.001,3533.5,3533.4,0.9267]
[1762795838373,0.001,3533.5,3533.4,0.472]
[1762795839276,0.001,3533.5,3533.4,0.9267]
[1762795840843,2.83015741,3533.4,3533.1,0.1809]
[1762795841476,0.001,3533.5,3533.3,0.472]
[1762795841645,0.001,3533.5,3533.4,0.472]
[1762795842463,2.83105518,3533.5,3533.4,0.472]
[1762795842699,0.3716,3533.5,3532.3,0.860204]
[1762795842839,2.83042397,3533.1,3532.3,0.4547]
[1762795843194,2.83042397,3533.1,3532.4,2.83087501]
[1762795844291,2.8304081,3533.1,3532.9,0.472]
[1762795845456,2.83015324,3533.4,3533.0,0.472]
[1762795845670,2.83029652,3533.2,3533.0,0.472]
[1762795845887,0.001,3533.5,3533.0,0.472]
[1762795846075,2.83037559,3533.1,3533.0,0.472]
[1762795846490,2.83030784,3533.2,3533.0,0.472]
[1762795846704,0.001,3533.5,3533.4,0.472]
[1762795847160,0.001,3533.5,3533.4,0.9267]
[1762795848495,0.001,3533.5,3533.4,3.75683528]
[1762795850060,0.001,3533.5,3533.4,4.43363109]
[1762795850260,0.001,3533.8,3533.7,2.82989501]
[1762795850497,0.001,3533.8,3533.7,4.96711101]
[1762795850695,0.001,3533.8,3533.7,5.42181101]
[1762795853123,0.001,3534.2,3534.1,4.08928671]
[1762795853287,0.001,3534.6,3534.2,4.49471065]
[1762795853487,0.001,3534.6,3534.2,5.42141065]
[1762795854422,0.01,3534.9,3534.6,4.49439044]
[1762795854722,0.01,3534.9,3534.6,4.96599044]
[1762795854925,0.01,3534.9,3534.6,5.45419044]
[1762795855083,0.01,3534.9,3534.6,6.56546946]
[1762795855285,0.01,3534.9,3534.8,3.23451837]
[1762795855485,0.01,3535.9,3534.9,1.259712]
[1762795855723,0.01,3535.9,3535.8,0.6794]
[1762795856085,0.01,3535.9,3535.8,1.1788]
[1762795857625,0.01,3535.9,3535.8,4.69056181]
[1762795857834,0.01,3535.9,3535.8,5.09606581]
[1762795857985,0.01,3535.9,3535.8,6.35577781]
[1762795858790,0.01,3536.9,3536.5,2.82763158]
[1762795858998,0.01,3536.9,3536.8,0.6794]
[1762795860843,0.01,3536.9,3536.3,0.4994]
[1762795861020,2.83736612,3536.9,3536.3,2.82780513]
[1762795861221,0.01,3536.9,3536.8,0.4949]
[1762795861423,0.001,3537.1,3537.0,2.82725473]
[1762795861638,0.001,3537.5,3537.4,3.23243903]
[1762795861839,0.001,3538.3,3537.8,2.82661541]
[1762795862046,0.001,3538.3,3537.8,0.4949]
[1762795862248,0.001,3538.3,3537.8,2.254012]
[1762795862576,0.001,3538.3,3537.3,0.118]
[1762795862866,0.001,3538.3,3537.4,3.32631671]
[1762795863041,2.8263228,3538.2,3537.5,1.259712]
[1762795863243,2.82637065,3538.2,3537.6,0.4994]
[1762795863761,0.001,3538.3,3537.8,0.4949]
[1762795863918,0.001,3538.3,3537.8,3.32151541]
[1762795864118,0.001,3538.3,3537.8,3.82091541]
[1762795864318,0.001,3538.3,3537.8,4.22641941]
[1762795864625,0.001,3538.3,3537.8,5.48613141]
[1762795864837,0.001,3538.3,3537.8,6.31742073]
[1762795865964,0.001,3538.3,3537.8,5.91191673]
[1762795867856,0.001,3538.3,3537.8,3.08530132]
[1762795868175,0.001,3538.3,3537.8,5.08062741]
[1762795868860,0.001,3538.3,3537.8,5.07478741]
[1762795871761,0.001,3538.3,3537.8,1.748772]
[1762795871977,0.001,3538.3,3537.8,5.07478741]
[1762795872978,0.001,3538.3,3537.8,2.248172]
[1762795873280,0.001,3538.3,3537.8,1.748772]
[1762795873460,0.001,3538.3,3537.8,2.25627295]
[1762795873666,0.001,3538.3,3537.8,5.08288836]
[1762795873859,0.001,3538.3,3537.8,2.25627295]
[1762795874176,3.30197089,3538.3,3537.5,4.58589003]
[1762795874463,3.30194611,3538.3,3537.7,1.259712]
[1762795874670,0.4757,3538.3,3537.5,4.58795594]
[1762795874878,0.4757,3538.3,3537.7,2.82667386]
[1762795875025,0.001,3538.3,3537.8,3.34978156]
[1762795875229,0.001,3538.3,3537.8,3.82091541]
[1762795876395,0.001,3538.3,3537.8,0.9943]
[1762795876548,0.001,3538.3,3537.8,3.32151541]
[1762795878667,3.30196484,3538.3,3537.7,1.259712]
[1762795878957,3.30196484,3538.3,3537.6,1.259712]
[1762795879154,2.82630802,3538.2,3537.6,2.82676045]
[1762795879377,3.30107717,3538.1,3537.5,0.002]
[1762795879582,0.4747,3538.1,3537.6,2.8267234]
[1762795879803,3.30107853,3538.1,3537.5,2.82882283]
[1762795880005,0.4747,3538.1,3537.5,2.82882283]
[1762795880217,0.001,3538.3,3537.8,0.4949]
[1762795880417,0.001,3538.3,3537.8,3.34978156]
[1762795880913,0.001,3538.3,3537.8,3.82091541]
[1762795882832,0.4745,3538.3,3537.6,1.259712]
[1762795883186,0.001,3538.3,3537.8,3.32151541]
[1762795883319,0.001,3538.3,3537.8,3.98648384]
[1762795883508,0.001,3538.3,3537.8,4.48588384]
[1762795884390,0.001,3538.3,3537.8,6.15109984]
[1762795885728,0.001,3538.3,3537.8,5.24619584]
[1762795886116,0.001,3538.3,3537.8,5.71969584]
[1762795891198,0.3741,3537.9,3537.8,3.49158384]
[1762795891604,0.011,3537.9,3537.8,3.99128384]
[1762795891829,0.011,3537.9,3537.8,4.46478384]
[1762795892032,0.011,3537.9,3537.8,3.99128384]
[1762795892396,0.011,3537.9,3537.8,2.82661541]
[1762795892397,0.3741,3537.9,3537.8,2.82661541]
[1762795892598,0.3741,3537.9,3537.7,4.08638235]
[1762795892818,0.0046,3537.8,3537.7,4.08638235]
[1762795893441,0.4684,3537.8,3537.5,0.002]
[1762795893642,0.3476,3537.6,3537.5,4.08856712]
[1762795894843,0.3476,3537.6,3537.5,1.261712]
[1762795895044,0.3476,3537.6,3537.5,4.08856712]
[1762795895741,0.4638,3537.8,3537.6,2.82676183]
[1762795895943,0.211,3537.9,3537.5,4.08855302]
[1762795896145,0.7056,3537.9,3537.5,4.08855302]
[1762795896641,0.3217,3537.6,3537.5,0.002]
[1762795896841,0.211,3537.9,3537.5,2.82884755]
[1762795897046,0.61044191,3537.8,3537.5,3.31104755]
[1762795897244,0.7056,3537.9,3537.5,3.31104755]
[1762795897427,0.61035311,3537.8,3537.5,2.82884755]
[1762795897635,0.7056,3537.9,3537.5,2.82884755]
[1762795897953,0.3217,3537.6,3537.5,0.002]
[1762795898132,0.211,3537.9,3537.5,2.82885512]
[1762795898313,0.61027429,3537.8,3537.5,2.82885512]
[1762795898514,0.7056,3537.9,3537.5,2.82885512]
[1762795898734,0.61027411,3537.8,3537.5,2.82885512]
[1762795898936,0.7056,3537.9,3537.5,2.82885512]
[1762795899125,0.61027411,3537.8,3537.5,2.82885512]
[1762795899454,0.7056,3537.9,3537.5,0.002]
[1762795899646,0.61021319,3537.8,3537.5,0.002]
[1762795899945,0.3217,3537.6,3537.5,0.002]
[1762795901748,0.3217,3537.6,3537.5,3.862]
[1762795901928,0.211,3537.9,3537.5,3.862]
[1762795902253,0.61011707,3537.8,3537.5,6.68883989]
[1762795902436,0.211,3537.9,3537.5,6.68883989]
[1762795902617,0.61004384,3537.8,3537.5,6.68883989]
[1762795902810,0.7056,3537.9,3537.5,6.68885024]
[1762795903013,0.61004384,3537.8,3537.5,6.68885024]
[1762795903246,0.7056,3537.9,3537.5,3.862]
[1762795903426,0.4946,3537.8,3537.5,3.862]
[1762795903627,0.3217,3537.6,3537.5,3.862]
[1762795904022,0.2717,3537.6,3537.5,3.862]
[1762795904242,0.2717,3537.6,3537.5,6.68885512]
[1762795904546,0.2717,3537.6,3537.5,3.862]
[1762795906460,0.2717,3537.6,3537.5,6.68885512]
[1762795907129,0.2717,3537.6,3537.5,7.64044152]
[1762795907366,0.4946,3537.8,3537.5,7.64044152]
[1762795907530,0.211,3537.9,3537.5,8.12264152]
[1762795907726,0.7056,3537.9,3537.5,8.12264152]
[1762795907929,0.7056,3537.9,3537.5,5.2957864]
[1762795908128,0.7056,3537.9,3537.5,4.3442]
[1762795908435,0.7056,3537.9,3537.5,3.862]
[1762795908436,0.001,3537.8,3537.5,3.862]
[1762795908635,0.001,3537.8,3537.5,6.68882157]
[1762795909564,0.001,3537.8,3537.6,2.82673736]
[1762795909933,0.001,3537.8,3537.5,3.862]
[1762795910375,0.001,3537.8,3537.5,6.68883823]
[1762795910740,0.001,3537.8,3537.5,3.862]
[1762795911073,0.001,3537.8,3537.7,3.30889531]
[1762795911255,0.001,3537.8,3537.7,4.56860731]
[1762795911649,0.001,3537.8,3537.7,5.02450731]
[1762795911849,0.001,3537.8,3537.7,4.56860731]
[1762795912746,0.283,3537.8,3537.5,0.002]
[1762795912933,0.282,3537.6,3537.5,0.002]
[1762795913350,0.7745,3537.6,3537.5,0.002]
[1762795913977,0.282,3537.6,3537.5,0.002]
[1762795923001,3.59077521,3537.6,3537.5,0.002]
[1762795923169,4.01580525,3537.6,3537.5,0.002]
[1762795923357,0.764,3537.6,3537.5,0.002]
[1762795923993,3.59077521,3537.6,3537.5,0.002]
[1762795924362,0.764,3537.6,3537.5,0.002]
[1762795924670,0.282,3537.6,3537.5,0.002]
[1762795925000,0.001,3537.8,3537.5,0.4654]
[1762795925795,0.001,3537.8,3537.5,0.002]
[1762795926006,0.483,3537.8,3537.5,0.002]
[1762795926176,0.2908,3537.6,3537.5,0.002]
[1762795928327,0.2908,3537.6,3537.5,3.862]
[1762795930819,0.2908,3537.6,3537.5,0.002]
[1762795931026,0.483,3537.8,3537.5,0.002]
[1762795932649,0.2908,3537.6,3537.5,0.002]
[1762795933516,0.483,3537.8,3537.7,2.82669531]
[1762795933517,0.001,3537.8,3537.7,2.82669531]
[1762795933718,0.001,3537.8,3537.7,3.31836226]
[1762795934067,0.001,3537.8,3537.7,5.42641131]
[1762795935450,0.001,3537.8,3537.7,4.95531131]
[1762795935652,0.001,3537.8,3537.7,5.42641131]
[1762795935971,0.001,3537.8,3537.7,6.25193063]
[1762795936521,0.001,3537.8,3537.7,13.75154227]
[1762795936950,0.011,3537.9,3537.8,8.35083141]
[1762795937127,0.011,3537.9,3537.8,9.28533141]
[1762795937924,0.011,3537.9,3537.8,15.59533141]
[1762795938124,0.011,3537.9,3537.8,18.34216911]
[1762795938959,0.011,3537.9,3537.8,21.88863039]
[1762795941548,0.6735,3537.9,3537.5,0.002]
[1762795941748,0.4641,3537.6,3537.5,0.002]
[1762795941947,0.011,3537.9,3537.5,0.4654]
[1762795942152,0.011,3537.9,3537.5,3.29220582]
[1762795942352,0.011,3537.9,3537.5,0.4654]
[1762795942353,0.6868,3537.9,3537.5,0.4654]
[1762795942582,0.286,3537.6,3537.5,0.002]
[1762795942933,0.766,3537.6,3537.5,0.002]
[1762795944532,0.286,3537.6,3537.5,0.002]
[1762795946470,0.6848,3537.9,3537.5,0.4792]
[1762795946961,0.2879,3537.6,3537.5,0.002]
[1762795950463,0.2048,3537.9,3537.5,0.002]
[1762795950669,0.6584,3537.9,3537.5,0.002]
[1762795951094,0.4536,3537.8,3537.5,0.002]
[1762795951387,0.314,3537.6,3537.5,0.002]
[1762795952473,0.314,3537.6,3537.5,3.861]
[1762795954797,0.2048,3537.9,3537.5,4.3382]
[1762795954977,0.6584,3537.9,3537.5,4.3382]
[1762795955405,0.2048,3537.9,3537.5,7.16502713]
[1762795955580,0.2048,3537.9,3537.5,4.3382]
[1762795956477,0.314,3537.6,3537.5,3.861]
[1762795957270,0.6571,3537.9,3537.5,4.3382]
[1762795957471,0.6571,3537.9,3537.5,7.16500772]
[1762795957680,0.6571,3537.9,3537.5,4.3382]
[1762795957880,0.2048,3537.9,3537.5,3.861]
[1762795958203,0.2048,3537.9,3537.5,4.60174613]
[1762795958412,3.03134212,3537.9,3537.6,3.859]
[1762795958911,0.314,3537.7,3537.6,3.859]
[1762795959516,0.011,3537.9,3537.8,2.82661541]
[1762795959689,0.011,3537.9,3537.8,4.1723731]
[1762795960295,0.011,3537.9,3537.8,4.6602731]
[1762795960495,0.011,3537.9,3537.8,8.20673438]
[1762795960713,0.011,3537.9,3537.8,9.46644638]
[1762795960900,0.011,3537.9,3537.8,6.63983097]
[1762795961283,0.011,3537.9,3537.8,8.97854638]
[1762795962578,0.011,3537.9,3537.8,9.46644638]
[1762795963528,0.001,3538.2,3538.1,6.67437573]
[1762795963810,0.001,3538.2,3538.1,6.61081735]
[1762795964317,0.001,3538.2,3538.1,9.43719308]
[1762795964517,0.001,3538.2,3538.1,6.61081735]
[1762795964907,0.001,3538.2,3538.1,9.43719308]
[1762795965111,0.001,3538.2,3538.1,6.61081735]
[1762795965414,0.3148,3538.2,3538.1,6.67437573]
[1762795965619,0.3148,3538.2,3538.1,3.848]
[1762795966706,0.001,3538.2,3538.1,18.95474901]
[1762795968427,0.001,3538.2,3538.1,14.72128773]
[1762795970198,0.001,3538.6,3538.3,3.846]
[1762795970400,0.4546,3538.6,3538.4,3.846]
[1762795970785,0.3138,3538.5,3538.4,3.846]
[1762795972722,0.001,3538.6,3538.4,4.3232]
[1762795973223,0.001,3538.6,3538.4,3.846]
[1762795973899,0.3152,3538.5,3538.4,3.846]
[1762795974230,3.14125623,3538.5,3538.4,3.846]
[1762795974408,3.59215623,3538.5,3538.4,3.846]
[1762795975310,0.7661,3538.5,3538.4,3.846]
[1762795976126,3.59215623,3538.5,3538.4,3.846]
[1762795976498,0.7661,3538.5,3538.4,3.846]
[1762795979418,0.3152,3538.5,3538.4,3.846]
[1762795979667,0.001,3538.6,3538.4,3.846]
[1762795979804,0.001,3538.6,3538.5,0.4993]
[1762795980715,0.001,3538.6,3538.5,2.0422504]
[1762795981403,0.4597,3538.6,3538.5,1.0491504]
[1762795981833,0.001,3538.6,3538.5,4.8951504]
[1762795982036,0.001,3538.6,3538.5,5.3944504]
[1762795982210,0.4583,3538.6,3538.5,3.846]
[1762795982725,0.001,3538.6,3538.5,4.3453]